fUSD/lending_fUSD_20240616
["ID","MTS","AMOUNT","RATE_DAILY","PERIOD"]
[329656872,1718544663263,-500.0,0.00027537,2]
[329656873,1718544663279,-515.95,0.00027568,7]
[329656874,1718544663316,-536.16,0.0002757,3]
[329656875,1718544663328,-7260.0,0.000276,5]
[329656876,1718544663340,-155.0,0.00027629,2]
[329656877,1718544663360,-518.01,0.00027669,3]
[329656878,1718544663380,-1771.31,0.00027669,3]
[329656879,1718544663394,-500.0,0.00027669,3]
[329656880,1718544663410,-601.86,0.00027669,3]
[329656881,1718544663423,-3517.42,0.00027669,3]
[329656882,1718544663438,-1034.33,0.00027669,3]
[329656883,1718544663454,-500.0,0.00027669,3]
[329656884,1718544663466,-1817.46,0.00027669,3]
[329656885,1718544663478,-500.0,0.00027669,3]
[329656886,1718544663489,-1219.58,0.00027669,3]
[329656887,1718544663511,-4206.94,0.00027669,3]
[329656888,1718544663536,-500.0,0.00027669,3]
[329656889,1718544663562,-1090.98,0.00027669,3]
[329656890,1718544663573,-553.67,0.00027669,3]
[329656891,1718544663590,-17915.91,0.00027669,3]
[329656892,1718544663611,-620.95,0.00027669,3]
[329656893,1718544663793,-500.0,0.0002767,3]
[329656894,1718544663815,-3738.88,0.0002767,3]
[329656895,1718544663833,-718.99,0.0002767,3]
[329656896,1718544663849,-659.03,0.0002767,3]
[329656897,1718544663880,-506.01,0.0002767,3]
[329656898,1718544663913,-500.0,0.0002767,3]
[329656899,1718544663952,-896.58,0.0002767,3]
[329656900,1718544664004,-323.39557614,0.0002767,2]
[329656901,1718544664052,-591.45818496,0.0002767,3]
[329656902,1718544664068,-391.95234138,0.0002767,2]
[329656903,1718544664094,-899.391657,0.0002767,2]
[329656904,1718544664108,-345.04747232,0.0002767,2]
[329656905,1718544664129,-85708.21498702,0.0002767,2]
[329656906,1718544664144,-874.42,0.0002767,3]
[329656907,1718544664162,-150.0,0.00027671,2]
[329656908,1718544664175,-4987.49,0.00027681,2]
[329656909,1718544664188,-2000.0,0.000277,2]
[329656910,1718544664200,-2000.0,0.000277,2]
[329656911,1718544664211,-2000.0,0.000277,2]
[329656912,1718544664224,-2000.0,0.000277,2]
[329656913,1718544664236,-2000.0,0.000277,2]
[329656914,1718544664249,-2500.0,0.000277,2]
[329656915,1718544664260,-150.0,0.000277,5]
[329656916,1718544664273,-4140.55932962,0.00027743,2]
[329656917,1718544664290,-211.56834185,0.00027759,2]
[329656918,1718544664311,-157.75831803,0.00027768,2]
[329656919,1718544664331,-170.09242682,0.00027768,2]
[329656920,1718544664343,-207690.45147998,0.00027768,2]
[329656921,1718544664356,-366.69098462,0.00027768,2]
[329656922,1718544664383,-237.51982412,0.00027769,2]
[329656923,1718544664397,-1728.67084472,0.0002777,5]
[329656924,1718544664410,-179952.63435171,0.0002777,13]
[329656925,1718544664421,-2090992.72911449,0.0002777,5]
[329656926,1718544664673,-346.13164985,0.00023459,2]
[329656927,1718544664686,-326.42008962,0.00025,2]
[329656928,1718544664702,-159.29139933,0.00025,2]
[329656929,1718544664713,-168.1568612,0.00025,2]
[329656930,1718544664760,-16950.24873673,0.00025,2]
[329656931,1718544664776,-4567.87584513,0.00025005,2]
[329656932,1718544664787,-607.03,0.00027397,10]
[329656933,1718544664799,-98341.83961869,0.0002777,5]
[329656934,1718544664816,-288.512,0.0002777,5]
[329656935,1718544664834,-263577.62741681,0.0002777,5]
[329656936,1718544664849,-2882.82564708,0.0002777,5]
[329656937,1718544664871,-4980.69879481,0.0002777,5]
[329656938,1718544664898,-905.30016376,0.0002777,5]
[329656939,1718544664911,-1929.61064937,0.0002777,5]
[329656940,1718544664930,-602.00844115,0.00027769,2]
[329656941,1718544664960,-2787.44339086,0.00027769,2]
[329656942,1718544664974,-4336.95660914,0.0002777,5]
[329656943,1718544664989,-35900.0,0.0002777,5]
[329656944,1718544665051,-4374.54639685,0.0002777,5]
[329656945,1718544665076,-255.95603174,0.0002777,5]
[329656947,1718544824044,902.01696518,0.00014,2]
[329656948,1718544824147,29883.97417486,0.00014,2]
[329656950,1718544870785,150.0,6.94e-05,2]
[329656951,1718544870852,150.0,6.94e-05,2]
[329656952,1718544870887,216.64849583,6.94e-05,2]
[329656953,1718544870953,216.64849583,6.94e-05,2]
[329656954,1718544871004,150.0,6.94e-05,2]
[329656955,1718544871052,316.70300834,6.94e-05,2]
[329656961,1718545103547,150.0,0.0001,2]
[329656962,1718545103597,150.0,0.0001,2]
[329656963,1718545103655,150.0,0.0001,2]
[329656964,1718545103695,4312.60503946,0.0001,2]
[329656965,1718545107025,348.2371921,6.94e-05,2]
[329656966,1718545107945,290.10514488,6.94e-05,2]
[329656967,1718545109626,150.0,0.0001,2]
[329656968,1718545109665,228.45627863,0.0001,2]
[329656969,1718545113586,150.0,6.94e-05,2]
[329656970,1718545113622,4503.89333659,6.94e-05,2]
[329656971,1718545113656,10000.0,6.94e-05,2]
[329656972,1718545113746,10000.0,6.94e-05,2]
[329656973,1718545113806,10000.0,6.94e-05,2]
[329656974,1718545113853,10000.0,6.94e-05,2]
[329656975,1718545113890,10000.0,6.94e-05,2]
[329656976,1718545113959,10000.0,6.94e-05,2]
[329656977,1718545114051,10000.0,6.94e-05,2]
[329656978,1718545114111,78500.78987141,6.94e-05,2]
[329656979,1718545114438,381.32790316,5.205e-05,2]
[329656980,1718545114747,600.0,6.593e-05,2]
[329656981,1718545115052,150.0,6.94e-05,2]
[329656982,1718545115108,936.87182831,6.94e-05,2]
[329656983,1718545120753,150.0,6.94e-05,2]
[329656984,1718545120795,145.28444333,6.94e-05,2]
[329656985,1718545124998,4.71555667,6.94e-05,2]
[329656986,1718545125060,150.0,6.94e-05,2]
[329656987,1718545125087,97.57404906,6.94e-05,2]
[329656988,1718545125916,52.42595094,6.94e-05,2]
[329656989,1718545125966,150.0,6.94e-05,2]
[329656990,1718545125997,53.78852545,6.94e-05,2]
[329656991,1718545135573,150.0,6.94e-05,2]
[329656992,1718545135650,150.0,6.94e-05,2]
[329656993,1718545135735,150.0,6.94e-05,2]
[329656994,1718545135801,150.0,6.94e-05,2]
[329656995,1718545135885,150.0,6.94e-05,2]
[329656996,1718545135941,150.0,6.94e-05,2]
[329656997,1718545135972,150.0,6.94e-05,2]
[329656998,1718545136002,150.0,6.94e-05,2]
[329656999,1718545136031,150.0,6.94e-05,2]
[329657000,1718545136062,201153.06937474,6.94e-05,2]
[329657001,1718545156701,150.0,6.94e-05,2]
[329657002,1718545156751,12.81476569,6.94e-05,2]
[329657003,1718545157669,150.0,6.94e-05,2]
[329657004,1718545157707,150.0,6.94e-05,2]
[329657005,1718545157750,150.0,6.94e-05,2]
[329657006,1718545157800,150.0,6.94e-05,2]
[329657007,1718545157861,150.0,6.94e-05,2]
[329657008,1718545157893,150.0,6.94e-05,2]
[329657009,1718545157926,150.0,6.94e-05,2]
[329657010,1718545157955,150.0,6.94e-05,2]
[329657011,1718545157990,266.91665638,6.94e-05,2]
[329657012,1718545158022,30039.44064789,6.94e-05,2]
[329657013,1718545170977,150.0,6.94e-05,2]
[329657014,1718545171014,150.0,6.94e-05,2]
[329657015,1718545171053,150.0,6.94e-05,2]
[329657016,1718545171086,150.0,6.94e-05,2]
[329657017,1718545171114,150.0,6.94e-05,2]
[329657018,1718545171160,11385.81588685,6.94e-05,2]
[329657019,1718545173493,150.0,6.94e-05,2]
[329657020,1718545173547,150.0,6.94e-05,2]
[329657021,1718545173584,150.0,6.94e-05,2]
[329657022,1718545173625,150.0,6.94e-05,2]
[329657023,1718545173665,150.0,6.94e-05,2]
[329657024,1718545173707,150.0,6.94e-05,2]
[329657025,1718545173739,150.0,6.94e-05,2]
[329657026,1718545173771,150.0,6.94e-05,2]
[329657027,1718545173843,150.0,6.94e-05,2]
[329657028,1718545173916,150.0,6.94e-05,2]
[329657029,1718545173959,150.0,6.94e-05,2]
[329657030,1718545174000,150.0,6.94e-05,2]
[329657031,1718545174042,150.0,6.94e-05,2]
[329657032,1718545174085,43300.24568807,6.94e-05,2]
[329657033,1718545174124,5448.82816723,6.94e-05,2]
[329657035,1718545178624,150.0,6.939e-05,2]
[329657036,1718545178687,208.53625631,6.939e-05,2]
[329657037,1718545178719,150.0,6.939e-05,2]
[329657038,1718545178785,150.0,6.939e-05,2]
[329657039,1718545178842,3790.97704598,6.939e-05,2]
[329657040,1718545186877,600.0,6.593e-05,2]
[329657041,1718545192715,150.0,6.94e-05,2]
[329657042,1718545192760,150.0,6.94e-05,2]
[329657043,1718545329035,150.0,0.00010035,2]
[329657044,1718545329071,150.0,0.00010035,2]
[329657045,1718545329144,150.0,0.00010035,2]
[329657046,1718545329207,150.0,0.00010035,2]
[329657047,1718545329272,76.75,0.00010035,2]
[329657048,1718545391676,150.0,0.00010035,2]
[329657049,1718545391707,30.84144565,0.00010035,2]
[329657050,1718545396888,299.97320991,0.00010035,2]
[329657051,1718545413223,150.0,0.00010035,2]
[329657052,1718545413267,149.97320991,0.00010035,2]
[329657053,1718545413674,0.02679009,0.00010035,2]
[329657054,1718545413757,150.0,0.00010035,2]
[329657055,1718545413796,30.69559297,0.00010035,2]
[329657056,1718545428898,119.30440703,0.00010035,2]
[329657057,1718545428936,150.0,0.00010035,2]
[329657058,1718545428998,150.0,0.00010035,2]
[329657059,1718545429033,31.57607314,0.00010035,2]
[329657060,1718545583358,-150.0,0.0001075,2]
[329657061,1718545583621,-150.0,0.0001075,2]
[329657062,1718545583902,-150.0,0.0001075,2]
[329657063,1718545584051,-150.0,0.0001075,2]
[329657064,1718545584341,-150.0,0.0001075,2]
[329657065,1718545584555,-150.0,0.0001075,2]
[329657066,1718545584775,-1607.15455838,0.0001075,2]
[329657067,1718545585048,-1479.27219462,0.0001075,2]
[329657068,1718545589808,150.0,0.00010749,2]
[329657069,1718545589841,150.0,0.00010749,2]
[329657070,1718545589876,150.0,0.00010749,2]
[329657071,1718545589910,150.0,0.00010749,2]
[329657072,1718545589956,150.0,0.00010749,2]
[329657073,1718545589988,136.91046005,0.00010749,2]
[329657074,1718545607498,3836.32161292,0.0001075,2]
[329657075,1718545635627,3111.64235946,0.00010701,2]
[329657076,1718545651965,1000.0,0.000275,120]
[329657077,1718545659430,1764.292651,0.00010744,2]
[329657078,1718545670573,294.87759736,0.00010699,2]
[329657079,1718545673619,1000.0,0.000275,120]
[329657080,1718545713082,200.0,0.000275,120]
[329657081,1718545719997,200.0,0.000275,120]
[329657082,1718545726803,200.0,0.000275,120]
[329657083,1718545733825,203.909543,0.000275,120]
[329657084,1718545749199,-328.19325312,0.0001079,2]
[329657085,1718545749231,-300.0,0.00010791,2]
[329657086,1718545749287,-536.866205,0.00010791,2]
[329657087,1718545749330,-762.11180794,0.00010792,2]
[329657088,1718545749381,-449.49506021,0.00010792,2]
[329657089,1718545749412,-258.37137548,0.00010792,2]
[329657090,1718545749443,-280.09769825,0.00010792,2]
[329657091,1718545767285,200.0,0.000275,120]
[329657092,1718545770485,92.89256935,0.0001069,2]
[329657093,1718545770531,2794.69085809,0.0001069,2]
[329657094,1718545774471,302.855308,0.000275,120]
[329657096,1718545802163,214.33542338,0.0001069,2]
[329657113,1718545833423,-424.69537084,0.00010788,2]
[329657114,1718545833443,-3389.45183201,0.00010788,2]
[329657115,1718545833454,-1797.58231532,0.00010789,2]
[329657116,1718545833467,-1797.58231532,0.00010789,2]
[329657117,1718545833478,-1797.58231532,0.00010789,2]
[329657118,1718545833495,-35521.22347996,0.0001079,2]
[329657119,1718545833507,-2876.0,0.00010791,2]
[329657120,1718545833520,-10527.1686057,0.00010795,2]
[329657121,1718545833530,-150.0,0.00010796,2]
[329657122,1718545833542,-150.0,0.00010796,2]
[329657123,1718545833571,-300.0,0.00010796,2]
[329657124,1718545833597,-150.0,0.00010932,2]
[329657125,1718545833613,-1921.83,0.00011072,2]
[329657126,1718545833642,-2737.35884337,0.00011221,2]
[329657127,1718545833661,-250.0,0.0001126,2]
[329657128,1718545833684,-2256.5540686,0.00011294,2]
[329657129,1718545833702,-153.66,0.00011384,2]
[329657130,1718545833733,-153.66,0.00011426,2]
[329657131,1718545833749,-250.0,0.00011433,2]
[329657132,1718545833766,-153.66,0.00011469,2]
[329657133,1718545833804,-153.66,0.00011511,2]
[329657134,1718545833838,-153.66,0.00011554,2]
[329657135,1718545833872,-3848.38763926,0.00011554,2]
[329657136,1718545833897,-153.66,0.00011596,2]
[329657137,1718545833916,-153.66,0.00011638,2]
[329657138,1718545833936,-153.66,0.00011681,2]
[329657139,1718545833968,-214.33542337,0.000117,2]
[329657140,1718545833998,-153.66,0.00011723,2]
[329657141,1718545834023,-184.14,0.00011729,2]
[329657142,1718545834038,-153.66,0.00011766,2]
[329657143,1718545834053,-214569.64972464,0.00011799,2]
[329657144,1718545834069,-378257.04470482,0.00011799,2]
[329657145,1718545834094,-293.34092058,0.00011799,2]
[329657146,1718545834125,-1275.73562343,0.00011799,2]
[329657147,1718545834159,-5660.36809885,0.00011799,2]
[329657149,1718545835097,-454.25461509,0.00011799,2]
[329657211,1718545841899,-11600.55981236,0.00011799,2]
[329657212,1718545841914,-16634.70142189,0.000118,2]
[329657213,1718545841927,-153.66,0.00011808,2]
[329657214,1718545841940,-557.04,0.00011832,2]
[329657215,1718545841964,-153.66,0.0001185,2]
[329657216,1718545841979,-420.0,0.00011866,2]
[329657217,1718545841992,-210.0,0.00011876,2]
[329657218,1718545842016,-210.0,0.00011876,2]
[329657219,1718545842027,-153.66,0.00011893,2]
[329657220,1718545842038,-153.66,0.00011935,2]
[329657221,1718545842052,-153.66,0.00011977,2]
[329657222,1718545842063,-676.75,0.00012299,2]
[329657223,1718545842080,-453.83009299,0.00012458,2]
[329657224,1718545842103,-13292.63692227,0.000126,2]
[329657225,1718545842172,-499.99,0.000126,2]
[329657226,1718545842190,-23880.0,0.00012715,2]
[329657227,1718545842210,-28630.29506476,0.0001298,2]
[329657228,1718545842225,-286.0,0.00013042,2]
[329657229,1718545842245,-293.0,0.00013063,2]
[329657230,1718545842437,-200.0,0.00013699,2]
[329657231,1718545842449,-269.17,0.00013699,2]
[329657232,1718545842498,-991.45,0.00013699,2]
[329657233,1718545842534,-17862.986,0.000139,2]
[329657234,1718545842569,-659.57348588,0.00013998,2]
[329657235,1718545842596,-1261.96442366,0.00013998,2]
[329657236,1718545842612,-920.53374068,0.00013998,2]
[329657237,1718545842635,-532.05845602,0.00013998,2]
[329657238,1718545842651,-5588.69804539,0.00013998,2]
[329657239,1718545842681,-188.23605895,0.00013998,2]
[329657240,1718545842693,-339.07696494,0.00013998,2]
[329657241,1718545842726,-525.92177641,0.00013998,2]
[329657242,1718545842753,-8428.94573219,0.00013998,2]
[329657243,1718545842765,-237.44361328,0.00013998,2]
[329657244,1718545842783,-578.17842155,0.00013998,2]
[329657245,1718545842796,-328.19105524,0.00013998,2]
[329657246,1718545842813,-449.40300932,0.00013998,2]
[329657247,1718545842827,-536.7196223,0.00013998,2]
[329657248,1718545842839,-155.0835188,0.00013999,2]
[329657249,1718545842851,-3239.87376262,0.00013999,2]
[329657250,1718545842891,-157552.27455921,0.00014,2]
[329657251,1718545842924,-999.63,0.00014,2]
[329657254,1718545843232,6990.97371853,0.00010693,2]
[329657255,1718545843303,1725.06928147,0.00010693,2]
[329657297,1718545844244,-966.96059442,0.00014,2]
[329657298,1718545844261,-1904054.92463144,0.00014,2]
[329657299,1718545844291,-411.0,0.00014369,2]
[329657300,1718545844308,-184.14,0.00014469,2]
[329657301,1718545844320,-676.75,0.00014563,2]
[329657302,1718545844341,-703032.4218691,0.00015,2]
[329657303,1718545844365,-676.75,0.00016827,2]
[329657304,1718545844380,-2488.75759572,0.00017,2]
[329657305,1718545844403,-184.14,0.00017208,2]
[329657306,1718545844428,-167.28,0.00017728,2]
[329657307,1718545844442,-1461.24167935,0.00018,2]
[329657308,1718545844463,-676.75,0.00019091,2]
[329657309,1718545844475,-422.67068153,0.00019178,2]
[329657310,1718545844492,-477.37148288,0.00019178,2]
[329657311,1718545844516,-22560.48,0.00019178,2]
[329657312,1718545844531,-269.17,0.00019178,2]
[329657313,1718545844548,-326.5417784,0.0002,2]
[329657314,1718545844569,-223.87205772,0.0002,2]
[329657315,1718545844586,-9939.84383348,0.0002,2]
[329657316,1718545844604,-162.41045196,0.0002,2]
[329657317,1718545844639,-1000.0,0.00020401,2]
[329657318,1718545844656,-1830.0,0.00020418,2]
[329657319,1718545844681,-1269.0,0.00020418,2]
[329657320,1718545844718,-616.0,0.00020418,2]
[329657321,1718545844731,-1651.0,0.00020418,2]
[329657322,1718545844745,-842.881,0.00020418,2]
[329657323,1718545844758,-546.0,0.00020418,2]
[329657324,1718545844772,-1976.0,0.00020418,2]
[329657325,1718545844791,-5151.0,0.00020418,2]
[329657326,1718545844803,-211.0,0.00020418,2]
[329657327,1718545844824,-290.0,0.00020418,2]
[329657328,1718545844864,-2319.408,0.00020418,2]
[329657329,1718545844896,-264.847,0.00020418,2]
[329657330,1718545844930,-154.996,0.00020418,2]
[329657331,1718545844951,-1066.0,0.00020418,2]
[329657332,1718545844983,-5000.0,0.00021,2]
[329657333,1718545844994,-217.37369763,0.00021,2]
[329657334,1718545845010,-1000.0,0.00021075,2]
[329657335,1718545845022,-173.02,0.00021132,2]
[329657336,1718545845064,-176.0,0.00021273,2]
[329657337,1718545845077,-676.75,0.00021355,2]
[329657338,1718545845108,-5877.21,0.0002137,2]
[329657339,1718545845140,-24639.96,0.0002137,2]
[329657340,1718545845182,-300.0,0.00021422,2]
[329657341,1718545845197,-300.0,0.00021703,2]
[329657342,1718545845248,-506.41875786,0.000219,2]
[329657343,1718545845260,-500.0,0.00021917,2]
[329657344,1718545845275,-500.0,0.00021917,2]
[329657345,1718545845292,-500.0,0.00021917,2]
[329657346,1718545845344,-562.90837487,0.00021917,2]
[329657347,1718545845359,-274.41673805,0.00021917,2]
[329657348,1718545845375,-500.0,0.00021917,2]
[329657349,1718545845392,-500.0,0.00021917,2]
[329657350,1718545845403,-500.0,0.00021917,2]
[329657351,1718545845419,-586.23,0.00021917,2]
[329657352,1718545845443,-500.0,0.00021917,2]
[329657353,1718545845470,-500.0,0.00021917,2]
[329657354,1718545845492,-500.0,0.00021917,2]
[329657355,1718545845519,-500.0,0.00021917,2]
[329657356,1718545845552,-500.0,0.00021917,2]
[329657357,1718545845576,-500.0,0.00021917,2]
[329657358,1718545845588,-500.0,0.00021917,2]
[329657359,1718545845600,-500.0,0.00021917,2]
[329657360,1718545845615,-500.0,0.00021917,2]
[329657361,1718545845626,-701.16,0.00021917,2]
[329657362,1718545845650,-500.0,0.00021917,2]
[329657363,1718545845665,-500.0,0.00021917,2]
[329657364,1718545845683,-500.0,0.00021917,2]
[329657365,1718545845699,-500.0,0.00021917,2]
[329657366,1718545845713,-500.0,0.00021917,2]
[329657367,1718545845740,-500.0,0.00021917,2]
[329657368,1718545845763,-472.5541881,0.00021917,2]
[329657369,1718545845805,-500.0,0.00021917,2]
[329657370,1718545845838,-332.59785069,0.00021917,2]
[329657371,1718545845876,-500.0,0.00021917,2]
[329657372,1718545845887,-500.0,0.00021917,2]
[329657373,1718545845921,-500.0,0.00021917,2]
[329657374,1718545845941,-467.9678661,0.00021917,2]
[329657375,1718545846012,-572.0442244,0.00021917,2]
[329657376,1718545846029,-341.72806994,0.00021917,2]
[329657377,1718545846060,-500.0,0.00021917,2]
[329657378,1718545846089,-500.0,0.00021917,2]
[329657379,1718545846117,-500.0,0.00021917,2]
[329657381,1718545846151,-500.0,0.00021917,2]
[329657382,1718545846199,-500.0,0.00021917,2]
[329657383,1718545846216,-500.0,0.00021917,2]
[329657384,1718545846233,-500.0,0.00021917,2]
[329657385,1718545846244,-500.0,0.00021917,2]
[329657386,1718545846256,-500.0,0.00021917,2]
[329657387,1718545846267,-2985.98,0.00021917,2]
[329657388,1718545846285,-500.0,0.00021917,2]
[329657389,1718545846299,-500.0,0.00021917,2]
[329657390,1718545846340,-500.0,0.00021917,2]
[329657391,1718545846354,-736.49,0.00021917,2]
[329657392,1718545846375,-488.76448318,0.00021917,2]
[329657393,1718545846390,-500.0,0.00021917,2]
[329657395,1718545846406,-500.0,0.00021917,2]
[329657396,1718545846437,-500.0,0.00021917,2]
[329657397,1718545846451,-586.35,0.00021917,2]
[329657398,1718545846480,-500.0,0.00021917,2]
[329657399,1718545846494,-623.15,0.00021917,2]
[329657400,1718545846510,-500.0,0.00021917,2]
[329657401,1718545846527,-1880.93,0.00021917,2]
[329657402,1718545846539,-500.0,0.00021917,2]
[329657403,1718545846555,-500.0,0.00021917,2]
[329657404,1718545846570,-500.0,0.00021917,2]
[329657405,1718545846582,-500.0,0.00021917,2]
[329657406,1718545846603,-500.0,0.00021917,2]
[329657407,1718545846618,-500.0,0.00021917,2]
[329657408,1718545846631,-500.0,0.00021917,2]
[329657409,1718545846646,-500.0,0.00021917,2]
[329657411,1718545846665,-500.0,0.00021917,2]
[329657413,1718545846680,-500.0,0.00021917,2]
[329657416,1718545846717,-500.0,0.00021917,2]
[329657417,1718545846744,-500.0,0.00021917,2]
[329657418,1718545846757,-600.24,0.00021917,2]
[329657419,1718545846775,-500.0,0.00021917,2]
[329657420,1718545846789,-500.0,0.00021917,2]
[329657421,1718545846805,-158.56839442,0.00021917,2]
[329657422,1718545846822,-500.35308461,0.00021917,2]
[329657423,1718545846851,-500.0,0.00021917,2]
[329657424,1718545846870,-150.13,0.00021918,2]
[329657425,1718545846882,-250.0,0.00021918,2]
[329657426,1718545846895,-259.34,0.00021918,2]
[329657427,1718545846910,-300.0,0.00021985,2]
[329657428,1718545846926,-3680.98,0.00022,2]
[329657429,1718545846939,-1062.2,0.00022,2]
[329657430,1718545846951,-159.68,0.00022191,3]
[329657431,1718545847024,-500.54,0.00022191,3]
[329657432,1718545847058,-410.62,0.00022191,3]
[329657433,1718545847077,-500.0,0.00022191,3]
[329657434,1718545847091,-500.0,0.00022191,3]
[329657435,1718545847130,-500.0,0.00022191,3]
[329657436,1718545847146,-586.23,0.00022191,3]
[329657437,1718545847170,-500.0,0.00022191,3]
[329657438,1718545847183,-500.0,0.00022191,3]
[329657439,1718545847197,-500.0,0.00022191,3]
[329657440,1718545847241,-500.0,0.00022191,3]
[329657441,1718545847254,-500.0,0.00022191,3]
[329657442,1718545847275,-701.16,0.00022191,3]
[329657443,1718545847287,-406.71,0.00022191,3]
[329657444,1718545847300,-500.0,0.00022191,3]
[329657445,1718545847317,-500.0,0.00022191,3]
[329657446,1718545847364,-500.0,0.00022191,3]
[329657447,1718545847397,-411.65,0.00022191,3]
[329657448,1718545847431,-312.63310325,0.00022191,3]
[329657449,1718545847461,-330.74,0.00022191,3]
[329657450,1718545847495,-500.0,0.00022191,3]
[329657451,1718545847524,-329.58,0.00022191,3]
[329657452,1718545847558,-500.0,0.00022191,3]
[329657453,1718545847586,-500.0,0.00022191,3]
[329657454,1718545847598,-500.0,0.00022191,3]
[329657455,1718545847615,-500.0,0.00022191,3]
[329657456,1718545847631,-500.0,0.00022191,3]
[329657457,1718545847644,-2985.98,0.00022191,3]
[329657458,1718545847657,-297.71900315,0.00022191,3]
[329657459,1718545847672,-500.0,0.00022191,3]
[329657460,1718545847690,-500.0,0.00022191,3]
[329657461,1718545847702,-736.49,0.00022191,3]
[329657462,1718545847717,-500.0,0.00022191,3]
[329657463,1718545847728,-500.0,0.00022191,3]
[329657464,1718545847742,-500.0,0.00022191,3]
[329657465,1718545847756,-886.91046005,0.00022191,2]
[329657466,1718545847769,-500.0,0.00022191,3]
[329657467,1718545847783,-623.15,0.00022191,3]
[329657468,1718545847794,-500.0,0.00022191,3]
[329657469,1718545847809,-1880.93,0.00022191,3]
[329657470,1718545847821,-500.0,0.00022191,3]
[329657471,1718545847835,-500.0,0.00022191,3]
[329657472,1718545847850,-500.0,0.00022191,3]
[329657473,1718545847871,-500.0,0.00022191,3]
[329657474,1718545847884,-500.0,0.00022191,3]
[329657475,1718545847897,-500.0,0.00022191,3]
[329657476,1718545847909,-300.0,0.00022267,2]
[329657477,1718545847932,-329.344,0.00022363,2]
[329657478,1718545847954,-501.51325233,0.00022463,2]
[329657479,1718545847969,-253.84103858,0.00022463,3]
[329657480,1718545847981,-500.0,0.00022463,3]
[329657481,1718545847996,-500.0,0.00022463,3]
[329657482,1718545848008,-500.0,0.00022463,2]
[329657483,1718545848020,-500.0,0.00022463,3]
[329657484,1718545848035,-500.0,0.00022463,3]
[329657485,1718545848056,-500.0,0.00022463,3]
[329657486,1718545848080,-500.0,0.00022463,3]
[329657487,1718545848096,-500.0,0.00022463,3]
[329657488,1718545848132,-500.0,0.00022463,3]
[329657489,1718545848144,-358.71967333,0.00022463,2]
[329657490,1718545848159,-500.0,0.00022463,3]
[329657491,1718545848176,-1259.87,0.00022463,3]
[329657492,1718545848196,-155.35673224,0.00022464,3]
[329657493,1718545848211,-158.51831279,0.00022464,3]
[329657494,1718545848222,-304.61863798,0.00022464,3]
[329657495,1718545848238,-296.16162819,0.00022464,3]
[329657496,1718545848248,-236.17400386,0.00022464,2]
[329657497,1718545848262,-500.0,0.00022465,3]
[329657498,1718545848275,-500.0,0.00022465,3]
[329657499,1718545848287,-500.0,0.00022465,3]
[329657500,1718545848300,-586.23,0.00022465,3]
[329657501,1718545848311,-500.0,0.00022465,3]
[329657502,1718545848324,-500.0,0.00022465,3]
[329657503,1718545848336,-500.0,0.00022465,3]
[329657504,1718545848347,-500.0,0.00022465,3]
[329657505,1718545848358,-500.0,0.00022465,3]
[329657506,1718545848376,-701.16,0.00022465,3]
[329657507,1718545848387,-500.0,0.00022465,3]